bitfinex-derivatives/quotes_SOLF0:USTF0_20241029
["timestamp","ask_amount","ask_price","bid_price","bid_amount"]
[1730174508011,2.7474,182.15,182.13,6.75693037]
[1730174509121,4.86,182.16,182.13,6.75693037]
[1730174510316,7.6072,182.16,182.13,6.75693037]
[1730174518634,4.86,182.16,182.13,6.75693037]
[1730174519536,7.6071,182.16,182.13,6.75693037]
[1730174520637,4.86,182.16,182.13,6.75693037]
[1730174521232,7.6071,182.16,182.13,6.75693037]
[1730174522836,4.86,182.16,182.06,341.0]
[1730174523037,2.7475,182.14,182.12,6.75693037]
[1730174525638,4.86,182.16,182.12,6.75693037]
[1730174525938,4.86,182.17,182.15,9.50413037]
[1730174526130,4.86,182.17,182.15,6.75693037]
[1730174526537,4.014,182.2,182.15,9.50403037]
[1730174526839,4.86,182.19,182.18,6.75693037]
[1730174528940,6.75693037,182.22,182.17,6.75693037]
[1730174529131,2.7466,182.2,182.17,6.75693037]
[1730174529435,6.75693037,182.2,182.08,341.0]
[1730174529648,2.7471,182.17,182.14,6.75693037]
[1730174529940,4.86,182.16,182.14,6.75693037]
[1730174530939,4.86,182.16,182.15,6.75693037]
[1730174533245,4.86,182.16,182.15,9.50423037]
[1730174536644,2.7466,182.2,182.16,2.747]
[1730174536838,4.86,182.19,182.18,6.75693037]
[1730174538144,7.6064,182.21,182.18,6.75693037]
[1730174540140,2.7471,182.17,182.08,341.0]
[1730174540345,6.75693037,182.2,182.14,6.75693037]
[1730174541146,4.86,182.21,182.17,6.75693037]
[1730174542442,2.7466,182.2,182.17,6.75693037]
[1730174542834,2.7459,182.25,182.2,2.7464]
[1730174543043,4.86,182.26,182.21,6.75693037]
[1730174543252,4.86,182.25,182.21,6.75693037]
[1730174544146,4.86,182.24,182.23,6.75693037]
[1730174545150,4.86,182.24,182.22,2.7461]
[1730174545841,4.86,182.24,182.21,6.75693037]
[1730174547251,4.86,182.24,182.21,9.50323037]
[1730174547859,6.75693037,182.27,182.11,345.86]
[1730174548150,4.84,182.34,182.26,6.75693037]
[1730174548335,4.84,182.34,182.29,6.75693037]
[1730174548538,2.7448,182.32,182.26,2.7455]
[1730174548737,6.75693037,182.3,182.24,6.75693037]
[1730174548951,4.84,182.29,182.24,6.75693037]
[1730174549146,2.746,182.24,182.19,430.94269395]
[1730174549355,2.746,182.24,182.2,6.75693037]
[1730174549356,4.84,182.24,182.2,6.75693037]
[1730174550241,2.7463,182.22,182.18,6.75693037]
[1730174550441,2.7463,182.22,182.17,2.747]
[1730174550847,1.2697,182.23,182.17,2.747]
[1730174551650,4.0159,182.23,182.18,2.7467]
[1730174552750,1.2697,182.23,182.18,10.556414]
[1730174553052,1.2335,182.25,182.18,10.556414]
[1730174553250,4.84,182.24,182.18,10.556414]
[1730174553941,4.84,182.24,182.19,2.7465]
[1730174554146,4.84,182.24,182.18,10.556414]
[1730174554946,4.84,182.24,182.22,2.7461]
[1730174556349,4.84,182.35,182.23,10.556414]
[1730174556550,4.84,182.34,182.23,10.556414]
[1730174556850,4.84,182.33,182.23,10.556414]
[1730174557045,1.2518,182.32,182.23,10.556414]
[1730174558255,2.745,182.31,182.26,2.7456]
[1730174559562,2.745,182.31,182.27,2.7454]
[1730174560461,3.9965,182.32,182.27,2.7454]
[1730174561162,1.2518,182.32,182.29,2.745]
[1730174561362,1.2518,182.32,182.23,10.556414]
[1730174561661,1.2518,182.32,182.25,2.7457]
[1730174561864,1.2518,182.32,182.23,10.556414]
[1730174563060,1.2518,182.32,182.29,2.7451]
[1730174563860,3.9966,182.32,182.25,2.7457]
[1730174564061,3.9966,182.32,182.23,10.556414]
[1730174564062,1.2049,182.31,182.23,10.556414]
[1730174564865,2.4374,182.31,182.21,10.556414]
[1730174566265,2.745,182.3,182.26,2.7456]
[1730174566861,1.2049,182.31,182.24,10.556414]
[1730174567056,3.9498,182.31,182.26,2.7456]
[1730174567255,1.2049,182.31,182.24,10.556414]
[1730174567856,4.84,182.3,182.27,2.7453]
[1730174570259,4.84,182.3,182.24,10.556414]
[1730174571267,4.84,182.3,182.29,2.7452]
[1730174573061,1.2049,182.31,182.29,2.7452]
[1730174573277,4.84,182.31,182.29,2.7452]
[1730174573474,4.84,182.31,182.26,10.556414]
[1730174573475,4.84,182.31,182.3,2.745]
[1730174577372,4.84,182.32,182.3,2.745]
[1730174577572,9.50097752,182.34,182.31,2.7448]
[1730174577573,4.82,182.33,182.31,2.7448]
[1730174577770,4.82,182.33,182.3,6.75657752]
[1730174578668,4.82,182.33,182.3,9.50147752]
[1730174579366,4.82,182.33,182.31,2.7449]
[1730174579570,11.57657752,182.33,182.2,341.0]
[1730174579774,4.82,182.33,182.28,6.75657752]
[1730174579961,4.82,182.33,182.29,2.745]
[1730174580365,7.5646,182.33,182.28,6.75657752]
[1730174580565,4.82,182.33,182.3,9.50157752]
[1730174584466,4.82,182.33,182.3,2.745]
[1730174587575,4.82,182.33,182.31,2.7448]
[1730174589274,2.7444,182.34,182.31,2.7448]
[1730174589472,4.82,182.32,182.31,2.7448]
[1730174590673,2.3626,182.35,182.33,2.7444]
[1730174590874,4.82,182.34,182.33,9.50097752]
[1730174592478,2.744,182.37,182.34,2.7444]
[1730174592678,4.82,182.35,182.34,2.7444]
[1730174592875,4.82,182.35,182.33,6.75657752]
[1730174593473,2.7439,182.38,182.35,2.7442]
[1730174593673,4.82,182.37,182.35,2.7442]
[1730174594672,2.7437,182.39,182.35,2.7442]
[1730174594877,4.82,182.38,182.35,2.7442]
[1730174595279,2.7437,182.39,182.35,2.7442]
[1730174595585,4.82,182.38,182.35,2.7442]
[1730174598482,5.7277665,182.57,182.37,6.75657752]
[1730174598483,16.5,182.56,182.37,6.75657752]
[1730174598685,5.7277665,182.57,182.39,9.50007752]
[1730174598686,7.95207752,182.44,182.39,9.50007752]
[1730174598984,14.34617541,182.43,182.39,6.75657752]
[1730174599187,17.08937541,182.43,182.38,2.7437]
[1730174599387,17.08937541,182.43,182.37,6.75657752]
[1730174599388,6.75657752,182.41,182.37,6.75657752]
[1730174599782,6.75657752,182.41,182.38,2.7438]
[1730174599980,6.75657752,182.41,182.37,6.75657752]
[1730174600383,6.75657752,182.42,182.37,6.75657752]
[1730174600789,9.49987752,182.42,182.37,9.50047752]
[1730174600984,9.49987752,182.42,182.25,341.0]
[1730174600985,1.208,182.41,182.25,341.0]
[1730174601186,6.75657752,182.39,182.25,345.82]
[1730174601494,6.0699,182.38,182.35,6.75657752]
[1730174601688,1.2499,182.38,182.35,6.75657752]
[1730174601896,4.82,182.37,182.35,6.75657752]
[1730174604592,4.82,182.37,182.36,6.75657752]
[1730174604794,4.82,182.37,182.36,9.50067752]
[1730174605192,4.82,182.39,182.38,2.7438]
[1730174605501,4.82,182.39,182.38,9.50037752]
[1730174605689,5.501,182.7,182.38,6.75657752]
[1730174605893,4.82,182.44,182.4,9.50007752]
[1730174606188,4.82,182.44,182.39,6.75657752]
[1730174606389,5.501,182.7,182.29,4.82]
[1730174606390,16.5,182.63,182.42,6.75657752]
[1730174606596,64.02617428,182.73,182.49,6.75657752]
[1730174606597,2.4425,182.51,182.49,6.75657752]
[1730174607193,2.4425,182.51,182.5,6.75657752]
[1730174607999,4.82,182.52,182.5,6.75657752]
[1730174608197,5.72195884,182.83,182.51,11.57657752]
[1730174608399,2.7385,182.73,182.59,2.7405]
[1730174608605,4.82,182.83,182.64,10.53441466]
[1730174608899,4.82,182.82,182.68,10.53441466]
[1730174609094,10.53441466,182.8,182.68,10.53441466]
[1730174609288,10.53441466,182.73,182.61,10.53441466]
[1730174609494,7.5178027,182.72,182.62,2.7401]
[1730174609694,10.53441466,182.7,182.57,10.53441466]
[1730174609996,1.1717,182.69,182.57,10.53441466]
[1730174610197,59.24,182.89,182.64,10.53441466]
[1730174610499,10.53441466,182.78,182.67,10.53441466]
[1730174610699,7.5381,182.77,182.67,10.53441466]
[1730174611501,4.8,182.77,182.67,10.53441466]
[1730174611691,7.538,182.77,182.67,10.53441466]
[1730174611894,10.53441466,182.75,182.64,10.53441466]
[1730174612098,10.53441466,182.67,182.55,10.53441466]
[1730174612302,7.2471,182.66,182.55,10.53441466]
[1730174612503,11.2,182.66,182.55,13.27561466]
[1730174612992,4.8,182.65,182.55,13.27561466]
[1730174613496,4.8,182.65,182.5,341.0]
[1730174613895,3.6603,182.66,182.55,10.53441466]
[1730174614102,4.8,182.64,182.55,10.53441466]
[1730174614500,4.8,182.63,182.55,10.53441466]
[1730174615000,7.5402,182.63,182.55,10.53441466]
[1730174616207,2.7402,182.63,182.55,10.53441466]
[1730174616406,6.3999,182.66,182.57,10.53441466]
[1730174616601,4.8,182.62,182.57,10.53441466]
[1730174617499,3.6603,182.66,182.57,13.27531466]
[1730174617500,4.8,182.61,182.57,13.27531466]
[1730174617699,3.6603,182.66,182.57,10.53441466]
[1730174618003,4.8,182.65,182.6,10.53441466]
[1730174618199,3.6603,182.66,182.6,10.53441466]
[1730174618508,4.8,182.64,182.58,10.53441466]
[1730174618900,4.8,182.64,182.58,13.27521466]
[1730174619405,4.8,182.64,182.6,10.53441466]
[1730174620716,4.8,182.63,182.6,10.53441466]
[1730174622309,4.8,182.63,182.59,10.53441466]
[1730174624214,15.33441466,182.63,182.53,10.53441466]
[1730174625107,16.5,182.83,182.61,10.53441466]
[1730174625315,16.5,182.83,182.63,10.53441466]
[1730174625316,10.53441466,182.74,182.63,10.53441466]
[1730174625512,6.5241,182.73,182.63,10.53441466]
[1730174625903,2.7395,182.67,182.63,10.53441466]
[1730174626104,5.28,182.66,182.63,10.53441466]
[1730174626309,5.28,182.65,182.63,10.53441466]
[1730174627508,8.0198,182.65,182.63,10.53441466]
[1730174627709,8.0198,182.65,182.6,10.53441466]
[1730174627909,5.28,182.64,182.6,10.53441466]
[1730174628306,5.28,182.63,182.6,10.53441466]
[1730174629411,2.7398,182.65,182.6,13.27491466]
[1730174629715,5.28,182.62,182.6,13.27491466]
[1730174629917,2.7398,182.65,182.6,13.27491466]
[1730174630314,8.0199,182.64,182.6,10.53441466]
[1730174630524,5.28,182.63,182.6,10.53441466]
[1730174631214,2.7399,182.64,182.6,10.53441466]
[1730174631408,2.7399,182.64,182.6,13.27491466]
[1730174631409,5.28,182.63,182.6,13.27491466]
[1730174632512,5.28,182.63,182.62,13.27461466]
[1730174632907,2.4662,182.71,182.62,10.53441466]
[1730174633116,2.7397,182.66,182.62,10.53441466]
[1730174633323,5.28,182.65,182.62,10.53441466]
[1730174633614,5.28,182.64,182.62,13.27461466]
[1730174633811,5.28,182.65,182.62,13.27461466]
[1730174634615,5.28,182.65,182.62,10.53441466]
[1730174634919,5.28,182.64,182.62,10.53441466]
[1730174635314,5.28,182.64,182.62,13.27461466]
[1730174635619,5.28,182.64,182.62,10.53441466]
[1730174636207,5.28,182.64,182.6,13.27491466]
[1730174636618,5.28,182.64,182.61,2.7402]
[1730174637712,5.28,182.64,182.6,13.27491466]
[1730174638216,5.28,182.64,182.6,10.53441466]
[1730174639316,13.00061466,182.71,182.62,10.53441466]
[1730174639526,2.4662,182.71,182.64,10.53441466]
[1730174639715,2.7396,182.66,182.62,13.27451466]
[1730174639913,5.28,182.65,182.62,13.27451466]
[1730174640920,5.28,182.65,182.62,10.53441466]
[1730174641524,5.28,182.65,182.62,13.27451466]
[1730174641728,5.28,182.65,182.6,10.53441466]
[1730174642919,2.74,182.63,182.6,10.53441466]
[1730174643316,5.28,182.65,182.6,10.53441466]
[1730174643520,2.7398,182.65,182.6,10.53441466]
[1730174643721,5.28,182.64,182.6,10.53441466]
[1730174643922,5.28,182.63,182.6,10.53441466]
[1730174644519,5.28,182.63,182.61,2.7402]
[1730174645123,5.28,182.63,182.6,10.53441466]
[1730174645632,8.02,182.63,182.6,10.53441466]
[1730174645832,2.4662,182.71,182.62,10.53441466]
[1730174646133,2.7395,182.67,182.62,10.53441466]
[1730174646325,5.28,182.7,182.62,10.53441466]
[1730174646521,2.7396,182.66,182.62,10.53441466]
[1730174646724,5.28,182.65,182.62,10.53441466]
[1730174647428,5.28,182.65,182.62,13.27451466]
[1730174648123,2.7399,182.64,182.62,10.53441466]
[1730174648434,5.28,182.65,182.62,10.53441466]
[1730174648629,8.0198,182.65,182.61,2.7403]
[1730174648818,5.28,182.65,182.6,10.53441466]
[1730174649326,2.4662,182.71,182.64,10.53441466]
[1730174649526,5.28,182.7,182.64,10.53441466]
[1730174649736,2.4662,182.71,182.64,10.53441466]
[1730174649925,5.28,182.7,182.64,10.53441466]
[1730174650933,2.7393,182.68,182.65,2.7397]
[1730174651133,5.28,182.67,182.65,2.7397]
[1730174651535,5.28,182.67,182.62,10.53441466]
[1730174651722,5.28,182.67,182.63,2.74]
[1730174652130,2.4662,182.71,182.63,2.74]
[1730174652131,5.28,182.66,182.63,2.74]
[1730174653632,2.7397,182.65,182.62,13.27461466]
[1730174653929,5.28,182.66,182.62,13.27461466]
[1730174654334,8.0197,182.66,182.62,13.27461466]
[1730174658726,8.0197,182.66,182.62,2.7402]
[1730174659733,1.2441,182.73,182.57,1.2819]
[1730174659935,1.2441,182.73,182.58,10.53441466]
[1730174659936,10.53441466,182.67,182.58,10.53441466]
[1730174660138,4.98,182.66,182.58,10.53441466]
[1730174660344,6.215,182.66,182.58,10.53441466]
[1730174660641,15.61301643,182.65,182.55,10.53441466]
[1730174661034,2.7407,182.59,182.55,2.7412]
[1730174661346,4.98,182.58,182.55,2.7412]
[1730174661636,4.98,182.58,182.49,341.0]
[1730174661637,2.7412,182.56,182.52,2.7416]
[1730174661836,4.98,182.58,182.5,10.53441466]
[1730174662240,15.51441466,182.58,182.48,10.53441466]
[1730174662536,1.2367,182.57,182.48,10.53441466]
[1730174662729,3.6348,182.57,182.48,10.53441466]
[1730174663237,2.7415,182.54,182.5,2.742]
[1730174663437,15.51441466,182.56,182.38,341.0]
[1730174663640,15.51441466,182.56,182.43,10.53441466]
[1730174663641,10.53441466,182.53,182.43,10.53441466]
[1730174663831,2.7422,182.49,182.43,2.7429]
[1730174664031,4.98,182.48,182.43,2.7429]
[1730174664228,2.7422,182.49,182.41,10.53441466]
[1730174664432,2.7422,182.49,182.38,341.0]
[1730174664433,4.98,182.48,182.44,10.53441466]
[1730174664937,3.6348,182.57,182.44,10.53441466]
[1730174664938,4.98,182.47,182.44,10.53441466]
[1730174665542,2.77359868,182.55,182.45,2.7427]
[1730174665543,2.7417,182.52,182.45,2.7427]
[1730174665738,2.77359868,182.55,182.45,2.7427]
[1730174666042,2.742,182.51,182.45,2.7427]
[1730174666243,4.98,182.5,182.45,2.7427]
[1730174667044,4.98,182.49,182.46,2.7425]
[1730174667243,4.98,182.48,182.46,2.7425]
[1730174668141,4.98,182.47,182.44,10.53441466]
[1730174668339,4.98,182.47,182.46,2.7426]
[1730174668535,10.53441466,182.56,182.46,2.7426]
[1730174668740,10.53441466,182.56,182.44,10.53441466]
[1730174668741,4.98,182.55,182.44,10.53441466]
[1730174668944,10.53441466,182.56,182.47,2.7424]
[1730174669129,4.98,182.55,182.44,10.53441466]
[1730174669331,10.53441466,182.56,182.46,10.53441466]
[1730174669535,4.98,182.55,182.51,2.7418]
[1730174669736,4.98,182.55,182.46,10.53441466]
[1730174670034,2.7412,182.56,182.51,2.7418]
[1730174670234,4.98,182.54,182.48,10.53441466]
[1730174670431,2.7413,182.55,182.48,10.53441466]
[1730174670634,4.98,182.54,182.48,10.53441466]
[1730174670829,4.98,182.53,182.48,10.53441466]
[1730174671038,2.7417,182.52,182.48,2.7423]
[1730174671239,2.7417,182.52,182.45,10.53441466]
[1730174671837,4.98,182.53,182.45,10.53441466]
[1730174672043,4.98,182.53,182.38,345.98]
[1730174672044,4.98,182.53,182.48,10.53441466]
[1730174672732,7.7217,182.53,182.49,2.7421]
[1730174672932,4.98,182.53,182.48,10.53441466]
[1730174673343,4.98,182.53,182.49,2.7421]
[1730174673937,2.7419,182.51,182.47,2.7423]
[1730174674146,4.98,182.53,182.47,2.7423]
[1730174674548,2.742,182.51,182.47,2.7423]
[1730174675850,4.98,182.53,182.45,10.53441466]
[1730174676150,10.53441466,182.51,182.38,341.0]
[1730174676348,10.53441466,182.51,182.38,10.53441466]
[1730174676349,1.2939,182.5,182.38,10.53441466]
[1730174676649,2.743,182.44,182.4,2.7434]
[1730174676851,4.98,182.43,182.38,10.53441466]
[1730174677037,4.98,182.42,182.41,2.7433]
[1730174679953,4.98,182.43,182.4,10.53441466]
[1730174680147,4.98,182.44,182.42,10.53441466]
[1730174680652,1.1975,182.49,182.42,10.53441466]
[1730174680847,4.98,182.48,182.42,10.53441466]
[1730174681046,4.98,182.48,182.44,2.7428]
[1730174681448,4.98,182.48,182.36,1.2161]
[1730174681449,2.7427,182.45,182.4,10.53441466]
[1730174681654,4.98,182.48,182.4,10.53441466]
[1730174681655,4.98,182.48,182.41,2.7432]
[1730174681856,4.98,182.48,182.4,10.53441466]
[1730174682354,2.7428,182.45,182.41,2.7432]
[1730174682556,2.7428,182.45,182.4,10.53441466]
[1730174682854,2.7428,182.45,182.41,2.7433]
[1730174683254,2.7428,182.45,182.4,10.53441466]
[1730174683454,2.7428,182.45,182.42,2.7432]
[1730174684956,2.7428,182.45,182.41,2.7433]
[1730174685648,1.1975,182.49,182.38,10.53441466]
[1730174685649,2.743,182.43,182.38,10.53441466]
[1730174685845,4.84,182.42,182.35,10.53441466]
[1730174686049,4.84,182.41,182.35,10.53441466]
[1730174686244,4.84,182.41,182.39,2.7436]
[1730174690559,7.5834,182.41,182.37,2.7438]
[1730174691259,2.7438,182.38,182.34,2.7444]
[1730174691649,2.7441,182.37,182.31,10.53441466]
[1730174691853,4.84,182.36,182.33,2.7445]
[1730174692548,4.84,182.36,182.34,2.7444]
[1730174693361,4.84,182.36,182.29,341.0]
[1730174693562,4.84,182.36,182.31,2.7448]
[1730174693563,2.7444,182.34,182.31,2.7448]
[1730174694660,4.84,182.36,182.28,10.53441466]
[1730174694855,2.7447,182.33,182.26,351.53441466]
[1730174695164,10.53441466,182.34,182.26,341.0]
[1730174695469,1.2883,182.32,182.26,341.0]
[1730174695666,4.84,182.31,182.27,2.7453]
[1730174696057,2.7451,182.3,182.26,2.7456]
[1730174696260,4.84,182.31,182.22,10.53441466]
[1730174696668,2.7451,182.3,182.27,2.7454]
[1730174697068,2.7451,182.3,182.22,10.53441466]
[1730174697268,2.7452,182.29,182.25,2.7456]
[1730174697665,4.84,182.31,182.22,10.53441466]
[1730174697874,2.7451,182.3,182.26,2.7456]
[1730174698277,4.84,182.31,182.22,10.53441466]
[1730174699765,2.745,182.3,182.26,2.7455]
[1730174700271,1.2883,182.32,182.3,2.7449]
[1730174700470,4.84,182.31,182.27,10.53441466]
[1730174700668,4.84,182.31,182.25,10.53441466]
[1730174700877,4.84,182.31,182.28,2.7452]
[1730174701072,4.84,182.31,182.2,10.53441466]
[1730174701278,10.53441466,182.3,182.2,10.53441466]
[1730174701774,4.84,182.31,182.18,10.53441466]
[1730174701775,10.53441466,182.28,182.18,10.53441466]
[1730174702372,2.7457,182.26,182.21,2.7462]
[1730174702561,4.86,182.25,182.21,2.7462]
[1730174702876,4.86,182.25,182.17,440.55737579]
[1730174703283,7.6058,182.25,182.17,440.55737579]
[1730174703573,4.86,182.25,182.17,440.55737579]
[1730174703772,1.2679,182.27,182.19,10.53441466]
[1730174703976,13.06501466,182.32,182.21,10.53441466]
[1730174704173,4.86,182.31,182.25,2.7457]
[1730174704975,13.06501466,182.32,182.21,10.53441466]
[1730174704976,4.86,182.3,182.26,2.7455]
[1730174705367,13.06501466,182.32,182.26,2.7455]
[1730174705562,2.745,182.3,182.24,10.53441466]
[1730174705762,4.86,182.31,182.3,2.7449]
[1730174705973,4.86,182.31,182.26,10.53441466]
[1730174706174,4.86,182.31,182.27,2.7454]
[1730174706478,4.86,182.31,182.26,10.53441466]
[1730174707268,10.53441466,182.39,182.28,10.53441466]
[1730174707470,4.86,182.35,182.28,10.53441466]
[1730174707973,7.6043,182.35,182.31,2.7447]
[1730174708879,4.86,182.34,182.31,2.7447]
[1730174709070,2.7443,182.35,182.31,2.7447]
[1730174709271,4.86,182.34,182.31,2.7447]
[1730174709671,4.86,182.34,182.28,10.53441466]
[1730174709878,2.7449,182.31,182.27,2.7454]
[1730174710676,2.7449,182.31,182.25,10.53441466]
[1730174710884,2.7449,182.31,182.28,2.7453]
[1730174711179,2.7452,182.29,182.23,10.53441466]
[1730174711378,4.86,182.28,182.25,2.7456]
[1730174713579,7.6053,182.28,182.24,2.7459]
[1730174714878,1.2072,182.31,182.25,10.53441466]
[1730174715079,4.82,182.3,182.28,10.53441466]
[1730174715272,4.82,182.29,182.28,10.53441466]
[1730174715672,4.82,182.29,182.28,13.27971466]
[1730174716881,4.82,182.29,182.19,341.0]
[1730174717075,4.82,182.29,182.19,10.53441466]
[1730174717484,2.7456,182.26,182.22,2.7461]
[1730174717785,10.53441466,182.27,182.16,10.53441466]
[1730174718179,10.53441466,182.27,182.19,2.7466]
[1730174718485,2.4621,182.26,182.19,2.7466]
[1730174718783,2.4621,182.26,182.16,10.53441466]
[1730174718784,2.4621,182.26,182.18,2.7468]
[1730174719078,1.2034,182.33,182.22,10.53441466]
[1730174719279,1.1921,182.31,182.22,10.53441466]
[1730174719882,2.7454,182.28,182.22,10.53441466]
[1730174720068,1.1921,182.31,182.22,10.53441466]
[1730174720069,4.82,182.27,182.24,2.7458]
[1730174721083,2.7453,182.29,182.24,2.7458]
[1730174721285,4.82,182.28,182.24,2.7458]
[1730174721883,4.82,182.28,182.25,2.7457]
[1730174722581,7.5653,182.28,182.25,2.7457]
[1730174722885,7.5653,182.28,182.23,2.7459]
[1730174723077,4.82,182.28,182.22,10.53441466]
[1730174723273,2.7457,182.26,182.19,10.53441466]
[1730174723586,2.7457,182.26,182.22,2.7462]
[1730174725484,4.82,182.28,182.19,10.53441466]
[1730174725682,2.7455,182.27,182.24,2.7459]
[1730174727588,4.82,182.28,182.19,10.53441466]
[1730174727776,1.1888,182.26,182.19,10.53441466]
[1730174728083,2.7461,182.23,182.2,2.7465]
[1730174728393,4.82,182.22,182.2,2.7465]
[1730174729777,4.82,182.22,182.16,10.53441466]
[1730174729778,4.82,182.22,182.19,2.7466]
[1730174730093,4.82,182.22,182.16,10.53441466]
[1730174730384,2.7465,182.21,182.17,2.7469]
[1730174731381,2.7466,182.2,182.16,2.7471]
[1730174731590,15.35441466,182.22,182.12,10.53441466]
[1730174732289,2.7467,182.19,182.14,2.7473]
[1730174732880,15.35441466,182.22,182.14,2.7473]
[1730174733079,10.53441466,182.2,182.1,351.53441466]
[1730174733280,10.53441466,182.2,182.13,2.7475]
[1730174733484,10.53441466,182.2,182.1,10.53441466]
[1730174733683,2.7473,182.15,182.1,10.53441466]
[1730174733890,4.82,182.14,182.11,2.7478]
[1730174734293,4.82,182.14,182.07,10.53441466]
[1730174735100,4.82,182.13,182.09,10.53441466]
[1730174736385,4.82,182.13,182.12,2.7477]
[1730174736995,4.82,182.13,182.11,2.7478]
[1730174737200,2.4576,182.17,182.09,10.53441466]
[1730174737397,4.82,182.16,182.09,10.53441466]
[1730174737791,4.82,182.15,182.09,10.53441466]
[1730174737990,4.82,182.14,182.09,10.53441466]
[1730174738186,4.82,182.14,182.1,2.748]
[1730174738403,4.82,182.14,182.09,10.53441466]
[1730174739398,2.4576,182.17,182.09,10.53441466]
[1730174739600,4.82,182.16,182.09,10.53441466]
[1730174740099,4.82,182.15,182.09,10.53441466]
[1730174740990,4.82,182.15,182.1,2.7479]
[1730174741203,4.82,182.15,182.09,10.53441466]
[1730174742104,4.82,182.14,182.09,10.53441466]
[1730174742792,4.82,182.14,182.11,2.7477]
[1730174742993,2.4576,182.17,182.09,10.53441466]
[1730174743308,4.82,182.13,182.09,10.53441466]
[1730174744404,4.82,182.13,182.12,2.7477]
[1730174745007,4.82,182.13,182.09,10.53441466]
[1730174745210,4.82,182.13,182.1,2.748]
[1730174745698,4.82,182.13,182.11,2.7478]
[1730174746200,10.53441466,182.16,182.07,10.53441466]
[1730174746398,2.4576,182.17,182.09,10.53441466]
[1730174746598,4.82,182.16,182.09,10.53441466]
[1730174746998,7.5672,182.16,182.12,2.7477]
[1730174747600,2.7473,182.15,182.12,2.7477]
[1730174748198,2.7476,182.13,182.1,2.748]
[1730174748895,7.5676,182.14,182.1,2.748]
[1730174750002,2.7479,182.11,182.04,10.53441466]
[1730174751000,2.7479,182.11,182.06,2.7486]
[1730174751600,2.7484,182.08,182.04,2.7489]
[1730174751907,4.82,182.07,182.04,2.7489]
[1730174752803,4.82,182.06,182.02,10.53441466]
[1730174753809,4.82,182.06,182.05,2.7488]
[1730174754307,2.7482,182.09,182.05,2.7488]
[1730174754509,4.82,182.08,182.05,2.7488]
[1730174754702,4.82,182.07,182.02,10.53441466]
[1730174754899,4.82,182.07,182.06,2.7486]
[1730174755100,4.82,182.07,182.02,10.53441466]
[1730174755309,4.82,182.07,182.03,2.749]
[1730174755310,7.5686,182.07,182.03,2.749]
[1730174757401,2.7486,182.06,182.03,2.749]
[1730174759706,2.7483,182.09,182.06,2.7486]
[1730174759905,4.82,182.08,182.06,2.7486]
[1730174761716,4.82,182.08,182.05,2.7487]
[1730174762115,4.82,182.07,182.04,10.53441466]
[1730174762415,4.82,182.09,182.06,10.53441466]
[1730174763011,4.82,182.09,182.08,2.7483]
[1730174763508,10.53441466,182.16,182.06,10.53441466]
[1730174763714,4.82,182.12,182.06,10.53441466]
[1730174765312,69.89441466,182.18,182.06,10.53441466]
[1730174765513,2.7471,182.17,182.11,10.53441466]
[1730174765717,1.2947,182.19,182.13,10.53441466]
[1730174766017,4.82,182.16,182.13,10.53441466]
[1730174766220,4.82,182.16,182.11,10.53441466]
[1730174767008,4.82,182.16,182.14,2.7473]
[1730174768120,4.82,182.16,182.15,2.7473]
[1730174769014,4.82,182.16,182.11,10.53441466]
[1730174769211,4.82,182.16,182.14,2.7474]
[1730174770611,2.7468,182.18,182.14,2.7474]
[1730174770822,4.82,182.17,182.14,2.7474]